bitfinex-derivatives/quotes_BTCF0:USTF0_20241218
["timestamp","ask_amount","ask_price","bid_price","bid_amount"]
[1734484945708,0.439469,106210.0,106200.0,1.647574]
[1734484946500,0.441066,106220.0,106200.0,1.77697577]
[1734484946698,0.441066,106220.0,106210.0,0.047069]
[1734484947909,0.407866,106220.0,106210.0,0.047069]
[1734484948108,0.438862,106230.0,106210.0,0.077569]
[1734484948305,0.407862,106230.0,106220.0,0.047065]
[1734484948510,0.047065,106220.0,106210.0,0.077567]
[1734484949006,0.3608,106220.0,106210.0,0.077567]
[1734484949215,0.047062,106230.0,106210.0,0.077567]
[1734484949507,0.407862,106230.0,106220.0,0.047065]
[1734484949718,0.047062,106230.0,106220.0,0.047065]
[1734484950004,0.407862,106230.0,106220.0,0.047065]
[1734484950511,0.047062,106230.0,106220.0,0.047065]
[1734484950713,0.3608,106230.0,106220.0,0.047065]
[1734484951016,0.42411275,106240.0,106220.0,0.047065]
[1734484951017,0.11036875,106240.0,106230.0,0.04706]
[1734484951404,0.00141275,106240.0,106230.0,0.04991369]
[1734484951705,0.00141275,106240.0,106220.0,0.52239677]
[1734484951911,0.04846975,106240.0,106230.0,0.04706]
[1734484952210,0.40926975,106240.0,106230.0,0.04706]
[1734484955002,0.04706,106230.0,106220.0,0.047064]
[1734484955203,0.43956,106230.0,106220.0,0.047064]
[1734484955810,0.43956,106230.0,106220.0,0.12939577]
[1734484956311,0.07876,106230.0,106220.0,0.12939577]
[1734484956512,0.43956,106230.0,106220.0,0.047064]
[1734484958313,0.47146,106230.0,106220.0,0.047064]
[1734484960501,0.55582475,106230.0,106220.0,0.047064]
[1734484961117,0.4244,106230.0,106220.0,0.12939577]
[1734484961317,0.50876475,106230.0,106220.0,0.12939577]
[1734484961517,0.50876475,106230.0,106220.0,1.62939577]
[1734484963919,0.4244,106230.0,106220.0,1.62939577]
[1734484964115,0.0636,106230.0,106220.0,1.62939577]
[1734484965627,0.43186064,106240.0,106230.0,0.04706]
[1734484965817,0.49476064,106240.0,106230.0,0.12939177]
[1734484966712,0.06481275,106240.0,106230.0,0.12939177]
[1734484967521,0.06481275,106240.0,106230.0,1.62939177]
[1734484967820,0.3916,106250.0,106240.0,0.047056]
[1734484968023,0.3916,106250.0,106240.0,0.12938777]
[1734484968227,0.3608,106250.0,106240.0,0.12938777]
[1734484968620,0.3613,106250.0,106240.0,0.12938777]
[1734484970626,0.0005,106250.0,106240.0,0.57251954]
[1734484970926,0.0005,106250.0,106240.0,0.60491954]
[1734484973026,0.0005,106250.0,106240.0,2.10491954]
[1734484973329,0.0005,106250.0,106240.0,1.66178777]
[1734484973517,0.0005,106250.0,106240.0,2.02258777]
[1734484974731,0.0005,106250.0,106240.0,2.04342852]
[1734484975024,0.0005,106250.0,106240.0,1.68262852]
[1734484975225,0.0005,106250.0,106240.0,2.04342852]
[1734484975620,0.4234,106260.0,106240.0,2.04342852]
[1734484975822,0.4234,106260.0,106250.0,0.12938277]
[1734484976131,0.50766228,106260.0,106250.0,0.12938277]
[1734484976734,0.50816228,106260.0,106250.0,0.12938277]
[1734484977330,0.0631,106260.0,106250.0,0.12938277]
[1734484977532,0.0631,106260.0,106250.0,0.49018277]
[1734484977832,0.0626,106260.0,106250.0,0.49018277]
[1734484978036,0.4234,106260.0,106250.0,0.12938277]
[1734484978443,0.470447,106260.0,106250.0,0.047051]
[1734484978732,0.55520928,106260.0,106250.0,0.047051]
[1734484979632,0.470447,106260.0,106250.0,0.047051]
[1734484979934,0.4234,106260.0,106250.0,0.12938277]
[1734484980138,0.0626,106260.0,106250.0,0.12938277]
[1734484980631,0.0626,106260.0,106250.0,0.49018277]
[1734484980834,0.0631,106260.0,106250.0,0.49018277]
[1734484981545,0.0005,106260.0,106250.0,0.49018277]
[1734484981733,0.36089194,106270.0,106260.0,0.047047]
[1734484982034,9.194e-05,106270.0,106260.0,0.12937877]
[1734484982430,9.194e-05,106270.0,106260.0,1.99017877]
[1734484984838,0.00059194,106270.0,106260.0,1.99017877]
[1734484986840,0.00059194,106270.0,106260.0,2.01059597]
[1734484987634,0.36139194,106270.0,106260.0,0.0674642]
[1734484988244,0.40843494,106270.0,106260.0,0.047047]
[1734484991733,0.40793494,106270.0,106260.0,0.047047]
[1734484991933,0.047047,106260.0,106250.0,1.54705]
[1734484992132,0.407847,106260.0,106250.0,1.54705]
[1734484992941,0.407847,106260.0,106250.0,1.62938177]
[1734484994042,0.407847,106260.0,106250.0,1.54705]
[1734484996344,0.407847,106260.0,106250.0,1.5]
[1734484996547,0.44313177,106260.0,106230.0,0.047559]
[1734484996748,0.047056,106240.0,106230.0,0.047059]
[1734484997040,0.407856,106240.0,106230.0,1.5]
[1734484997446,0.49018777,106240.0,106230.0,1.5]
[1734484997748,0.407856,106240.0,106230.0,0.0005]
[1734484998743,0.407856,106240.0,106220.0,0.047064]
[1734484998946,0.40786,106230.0,106220.0,0.047064]
[1734485002547,0.3608,106230.0,106220.0,0.047064]
[1734485003051,0.40786,106230.0,106220.0,0.047064]
[1734485003438,0.3608,106230.0,106220.0,0.12939577]
[1734485004655,0.407857,106240.0,106220.0,0.12939577]
[1734485004844,0.407857,106240.0,106220.0,0.047564]
[1734485005942,0.407857,106240.0,106220.0,0.047064]
[1734485006843,0.407857,106240.0,106220.0,0.047564]
[1734485007243,0.031,106230.0,106220.0,1.547564]
[1734485007848,0.031,106230.0,106220.0,1.547064]
[1734485008749,0.031,106230.0,106220.0,1.547564]
[1734485009149,0.031,106230.0,106220.0,1.62989577]
[1734485009839,0.031,106230.0,106220.0,1.62939577]
[1734485010240,0.3608,106240.0,106230.0,0.04706]
[1734485010547,0.3608,106240.0,106230.0,0.12939177]
[1734485010853,0.407856,106240.0,106230.0,0.04706]
[1734485011046,0.439856,106240.0,106230.0,0.04706]
[1734485012348,0.04706,106230.0,106220.0,1.547064]
[1734485012548,0.40786,106230.0,106220.0,1.547064]
[1734485012748,0.40786,106230.0,106220.0,1.547564]
[1734485013857,0.40786,106230.0,106220.0,1.547064]
[1734485016357,0.3608,106230.0,106210.0,0.16660693]
[1734485016564,0.407865,106220.0,106210.0,0.06496864]
[1734485016862,0.438265,106220.0,106210.0,1.56546864]
[1734485017050,0.471465,106220.0,106210.0,1.56546864]
[1734485017860,0.471465,106220.0,106210.0,1.56496864]
[1734485018762,0.471465,106220.0,106210.0,1.56546864]
[1734485019754,0.110665,106220.0,106210.0,1.56496864]
[1734485022857,0.3938,106230.0,106220.0,0.047065]
[1734485023157,0.3608,106230.0,106220.0,0.12939677]
[1734485023858,0.3608,106230.0,106220.0,1.62939677]
[1734485029163,0.4268,106240.0,106230.0,0.04706]
[1734485029459,0.066,106240.0,106230.0,0.12939177]
[1734485030166,0.033,106250.0,106230.0,0.49019177]
[1734485030470,0.50746228,106260.0,106240.0,0.08233177]
[1734485030764,0.50746228,106260.0,106250.0,0.047051]
[1734485030966,0.47596228,106260.0,106250.0,0.12938277]
[1734485031167,0.47575422,106270.0,106260.0,0.047047]
[1734485031364,0.47575422,106270.0,106260.0,0.12937877]
[1734485031365,0.39149194,106270.0,106260.0,0.12937877]
[1734485031869,0.39149194,106270.0,106260.0,1.547047]
[1734485034764,0.36089194,106270.0,106260.0,1.547047]
[1734485035963,9.194e-05,106270.0,106260.0,0.047047]
[1734485036765,9.194e-05,106270.0,106260.0,0.06337977]
[1734485037862,0.36089194,106270.0,106260.0,0.06337977]
[1734485038062,9.194e-05,106270.0,106260.0,0.06337977]
[1734485038466,9.194e-05,106270.0,106260.0,0.047047]
[1734485038668,0.36089194,106270.0,106260.0,0.047047]
[1734485040674,0.40793494,106270.0,106260.0,0.047047]
[1734485040867,0.49026671,106270.0,106260.0,0.047047]
[1734485041073,0.40793494,106270.0,106260.0,0.047047]
[1734485041260,0.40793494,106270.0,106260.0,0.12937877]
[1734485041261,0.39199194,106270.0,106260.0,0.12937877]
[1734485042270,0.03119194,106270.0,106260.0,0.12937877]
[1734485042871,0.03169194,106270.0,106260.0,0.12937877]
[1734485043764,0.03119194,106270.0,106260.0,0.49017877]
[1734485043978,9.194e-05,106270.0,106260.0,0.49017877]
[1734485044281,9.194e-05,106270.0,106260.0,0.52267877]
[1734485044866,0.00059194,106270.0,106260.0,0.52267877]
[1734485046879,0.00059194,106270.0,106260.0,2.02267877]
[1734485049885,9.194e-05,106270.0,106260.0,2.02267877]
[1734485050182,9.194e-05,106270.0,106260.0,0.49017877]
[1734485050381,0.03039194,106270.0,106260.0,0.49017877]
[1734485050571,0.43823494,106270.0,106260.0,0.047047]
[1734485052872,0.047047,106260.0,106250.0,1.56355762]
[1734485053079,0.471947,106260.0,106250.0,0.06355762]
[1734485056682,0.047051,106250.0,106240.0,1.547055]
[1734485056890,0.047056,106240.0,106230.0,0.047559]
[1734485057088,0.439656,106240.0,106230.0,0.047559]
[1734485057289,0.52198777,106240.0,106230.0,0.047559]
[1734485057481,0.52198777,106240.0,106230.0,0.0005]
[1734485057679,0.439656,106240.0,106230.0,0.0005]
[1734485057879,0.439656,106240.0,106220.0,0.047064]
[1734485058078,0.47216,106230.0,106220.0,0.047064]
[1734485058693,0.47216,106230.0,106220.0,0.06764398]
[1734485059285,0.47216,106230.0,106220.0,0.047064]
[1734485059791,0.047065,106220.0,106200.0,2.09161296]
[1734485060088,0.407865,106220.0,106210.0,0.047069]
[1734485062090,0.407865,106220.0,106200.0,1.98229133]
[1734485062289,0.441069,106210.0,106200.0,0.14848419]
[1734485062588,0.441069,106210.0,106200.0,0.10141219]
[1734485064794,0.52340077,106210.0,106200.0,0.1]
[1734485066595,0.441069,106210.0,106200.0,0.147074]
[1734485068292,0.441069,106210.0,106200.0,1.647074]
[1734485068694,0.394,106210.0,106200.0,1.72940577]
[1734485071104,0.3608,106220.0,106210.0,0.047069]
[1734485071306,0.3608,106220.0,106210.0,0.12940077]
[1734485072004,0.3608,106220.0,106210.0,0.12990077]
[1734485072591,0.3608,106220.0,106210.0,0.047569]
[1734485072803,0.3608,106220.0,106210.0,0.047069]
[1734485073702,0.3608,106220.0,106210.0,0.12940077]
[1734485073912,0.3608,106220.0,106210.0,1.62990077]
[1734485074902,0.3608,106220.0,106210.0,1.547069]
[1734485075111,0.407865,106220.0,106210.0,1.547069]
[1734485075295,0.407865,106220.0,106210.0,0.047069]
[1734485077908,0.3608,106220.0,106210.0,0.14973767]
[1734485079499,0.503861,106230.0,106220.0,0.047065]
[1734485081207,0.503861,106230.0,106220.0,1.547065]
[1734485082797,0.503861,106230.0,106220.0,0.047065]
[1734485083006,0.047065,106220.0,106210.0,0.0674049]
[1734485083200,0.407865,106220.0,106210.0,0.047068]
[1734485083405,0.407865,106220.0,106210.0,1.547068]
[1734485085109,0.49019677,106220.0,106200.0,0.1]
[1734485085309,0.078869,106210.0,106200.0,0.147073]
[1734485085810,0.439669,106210.0,106200.0,0.147073]
[1734485088510,0.439669,106210.0,106200.0,0.1]
[1734485089315,0.470069,106210.0,106200.0,0.1]
[1734485089909,0.49522152,106210.0,106200.0,0.1]
[1734485091821,0.5794838,106210.0,106200.0,0.1]
[1734485093115,0.66181557,106210.0,106200.0,0.1]
[1734485093515,0.77416528,106210.0,106200.0,0.1]
[1734485096813,0.66181557,106210.0,106200.0,0.1]
[1734485097609,0.5794838,106210.0,106200.0,0.1]
[1734485098610,0.55433128,106210.0,106200.0,0.1]
[1734485098809,0.470069,106210.0,106200.0,0.147074]
[1734485099014,0.439669,106210.0,106200.0,0.22940577]
[1734485099414,0.439669,106210.0,106200.0,1.72940577]
[1734485099917,0.078869,106210.0,106200.0,1.72940577]
[1734485100308,0.047065,106220.0,106210.0,0.047069]
[1734485100514,0.407865,106220.0,106210.0,0.12940077]
[1734485100920,0.22762428,106230.0,106220.0,0.047065]
[1734485101116,0.58842428,106230.0,106220.0,0.047065]
[1734485103220,0.504162,106230.0,106220.0,0.047065]
[1734485105618,0.047069,106210.0,106200.0,0.20375575]
[1734485105820,0.047069,106210.0,106200.0,0.17275575]
[1734485107120,0.407869,106210.0,106200.0,0.147073]
[1734485107330,0.407869,106210.0,106200.0,0.1]
[1734485107331,0.49020077,106210.0,106200.0,0.1]
[1734485111523,0.51524771,106210.0,106200.0,0.1]
[1734485112220,0.43291594,106210.0,106200.0,0.1]
[1734485112519,0.407869,106210.0,106200.0,0.147074]
[1734485113628,0.407869,106210.0,106200.0,1.647074]
[1734485114628,0.407869,106210.0,106200.0,0.147074]
[1734485116430,0.49020077,106210.0,106200.0,0.1]
[1734485117128,0.407869,106210.0,106200.0,0.1]
[1734485119528,0.407869,106210.0,106200.0,0.147074]
[1734485119718,0.047069,106210.0,106200.0,0.147074]
[1734485119925,0.4571,106230.0,106210.0,0.047069]
[1734485120122,0.504162,106230.0,106210.0,0.047069]
[1734485120327,0.504162,106230.0,106220.0,0.047065]
[1734485120524,0.504162,106230.0,106220.0,0.12939677]
[1734485120525,0.0329,106230.0,106220.0,0.12939677]
[1734485120732,0.407857,106240.0,106230.0,0.04706]
[1734485121531,0.3608,106240.0,106230.0,0.04706]
[1734485121852,0.407856,106240.0,106230.0,0.07856]
[1734485122132,0.408356,106240.0,106230.0,0.04706]
[1734485122942,0.407856,106240.0,106230.0,0.04706]
[1734485124036,0.408356,106240.0,106230.0,0.04706]
[1734485125032,0.407856,106240.0,106230.0,0.04706]
[1734485125238,0.04706,106230.0,106220.0,1.547062]
[1734485125537,0.04706,106230.0,106220.0,0.047062]
[1734485128035,0.3608,106230.0,106210.0,1.5]
[1734485128335,0.047065,106220.0,106210.0,0.047067]
[1734485128527,0.079165,106220.0,106210.0,0.047067]
[1734485128733,0.079165,106220.0,106210.0,1.547067]
[1734485129431,0.079165,106220.0,106210.0,1.56991874]
[1734485131729,0.109265,106220.0,106210.0,1.56991874]
[1734485132442,0.0321,106220.0,106210.0,1.56991874]
[1734485135232,0.0321,106220.0,106210.0,1.65225051]
[1734485135432,0.0321,106220.0,106210.0,2.01305051]
[1734485135640,0.047061,106230.0,106220.0,0.047065]
[1734485136937,0.468856,106240.0,106230.0,0.04706]
[1734485137639,0.468856,106240.0,106230.0,1.54706]
[1734485137939,0.469356,106240.0,106230.0,1.54706]
[1734485138442,0.469356,106240.0,106230.0,0.12939177]
[1734485138443,0.0005,106240.0,106230.0,0.12939177]
[1734485138638,0.0005,106240.0,106230.0,0.49019177]
[1734485138839,0.42651238,106260.0,106230.0,2.09935177]
[1734485139134,0.42651238,106260.0,106250.0,0.047051]
[1734485140744,0.47355938,106260.0,106250.0,0.047051]
[1734485143443,0.55589115,106260.0,106250.0,0.047051]
[1734485144738,0.047051,106250.0,106230.0,0.06962532]
[1734485144942,0.03,106240.0,106230.0,0.047059]
[1734485145143,0.3908,106240.0,106230.0,0.047059]
[1734485145333,0.437856,106240.0,106230.0,0.047059]
[1734485150843,0.437856,106240.0,106230.0,1.547059]
[1734485151044,0.437856,106240.0,106230.0,1.5]
[1734485151246,0.437856,106240.0,106220.0,0.06686708]
[1734485151556,0.47036,106230.0,106220.0,0.06686708]
[1734485151752,0.47036,106230.0,106220.0,1.56686708]
[1734485152559,0.47036,106230.0,106210.0,0.08283177]
[1734485152756,0.47036,106230.0,106220.0,0.047064]
[1734485153648,0.47036,106230.0,106220.0,1.547064]
[1734485154050,0.47036,106230.0,106220.0,1.5]
[1734485156262,0.47036,106230.0,106210.0,0.047068]
[1734485156560,0.047065,106220.0,106210.0,0.047068]
[1734485156758,0.047065,106220.0,106210.0,1.5673388]
[1734485157562,0.407865,106220.0,106210.0,0.0673388]
[1734485157766,0.047069,106210.0,106200.0,0.494552]
[1734485158064,0.047069,106210.0,106200.0,0.147572]
[1734485158065,0.38498175,106210.0,106200.0,0.147572]
[1734485159157,0.43205075,106210.0,106200.0,0.147072]
[1734485159866,0.43205075,106210.0,106200.0,0.16668373]
[1734485160050,0.43205075,106210.0,106200.0,0.16718373]
[1734485160254,0.43205075,106210.0,106200.0,1.66718373]
[1734485160670,0.43205075,106210.0,106200.0,1.647572]
[1734485160858,0.43205075,106210.0,106200.0,0.147572]
[1734485161064,0.46395075,106210.0,106200.0,0.147072]
[1734485161264,0.46395075,106210.0,106200.0,1.647072]
[1734485161961,0.46395075,106210.0,106200.0,1.647572]
[1734485162463,0.407865,106220.0,106200.0,2.09070377]
[1734485162666,0.407865,106220.0,106210.0,0.12940077]
[1734485163163,0.3608,106220.0,106210.0,0.12940077]
[1734485163370,0.3608,106220.0,106210.0,0.16100077]
[1734485163868,0.3608,106220.0,106210.0,0.078669]
[1734485167671,0.3608,106220.0,106210.0,0.09814948]
[1734485169672,0.503161,106230.0,106220.0,0.047065]
[1734485170076,0.01956747,106240.0,106220.0,0.44313177]
[1734485170273,0.047056,106240.0,106230.0,0.04706]
[1734485170783,0.407856,106240.0,106230.0,0.04706]
[1734485171680,0.047056,106240.0,106230.0,0.04706]
[1734485172081,0.407856,106240.0,106230.0,0.04706]
[1734485173477,0.047056,106240.0,106230.0,0.04706]
[1734485174192,0.407856,106240.0,106230.0,0.04706]
[1734485175196,0.047062,106230.0,106220.0,0.047064]
[1734485175486,0.471062,106230.0,106220.0,0.047064]
[1734485177091,0.110262,106230.0,106220.0,0.12939577]
[1734485177595,0.110262,106230.0,106220.0,0.047064]
[1734485178183,0.471062,106230.0,106220.0,0.047064]
[1734485178892,0.110262,106230.0,106220.0,0.047064]
[1734485179093,0.471062,106230.0,106220.0,0.047064]
[1734485179279,0.110262,106230.0,106220.0,0.047064]
[1734485179795,0.471062,106230.0,106220.0,0.047064]
[1734485179985,0.110262,106230.0,106220.0,0.047064]
[1734485180184,0.471062,106230.0,106220.0,0.047064]
[1734485181783,0.424,106230.0,106220.0,0.047064]
[1734485181992,0.47106,106230.0,106220.0,0.047064]
[1734485182291,0.11026,106230.0,106220.0,1.547064]
[1734485182693,0.47106,106230.0,106220.0,1.547064]
[1734485182999,0.11026,106230.0,106220.0,0.047064]
[1734485184789,0.11026,106230.0,106210.0,1.5]
[1734485184994,0.11026,106230.0,106220.0,0.047064]
[1734485185399,0.0632,106230.0,106220.0,0.047064]
[1734485185896,0.0318,106230.0,106220.0,0.12939577]
[1734485186087,0.0318,106230.0,106220.0,0.16049577]
[1734485186283,0.0318,106230.0,106220.0,0.52129577]
[1734485187499,0.48910545,106250.0,106240.0,0.047056]
[1734485187698,0.4232,106250.0,106240.0,0.12938777]
[1734485187884,0.0323,106250.0,106240.0,0.49018777]
[1734485188089,0.40926038,106260.0,106250.0,0.047051]
[1734485188090,0.36221238,106260.0,106250.0,0.047051]
[1734485189202,0.44647466,106260.0,106250.0,0.047051]
[1734485189696,0.36221238,106260.0,106250.0,0.047051]
[1734485191699,0.00141238,106260.0,106250.0,0.047051]
[1734485192801,0.40925938,106260.0,106250.0,0.047051]
[1734485193197,0.40975938,106260.0,106250.0,0.047051]
[1734485193395,0.04895938,106260.0,106250.0,0.047051]
[1734485194098,0.04845938,106260.0,106250.0,0.047051]
[1734485194301,0.40925938,106260.0,106250.0,0.047051]
[1734485194999,0.40975938,106260.0,106250.0,0.047051]
[1734485195301,0.04895938,106260.0,106250.0,0.047051]
[1734485195802,0.40975938,106260.0,106250.0,0.047051]
[1734485196191,0.04895938,106260.0,106250.0,0.047051]
[1734485196696,0.04895938,106260.0,106250.0,0.49018277]
[1734485196697,0.00191238,106260.0,106250.0,0.49018277]
[1734485196893,0.00191238,106260.0,106250.0,0.12938277]
[1734485197092,0.00191238,106260.0,106250.0,0.49018277]
[1734485198299,0.00191238,106260.0,106250.0,1.99018277]
[1734485199193,9.194e-05,106270.0,106260.0,0.047047]
[1734485199393,9.194e-05,106270.0,106260.0,0.52067877]
[1734485199599,9.194e-05,106270.0,106260.0,0.55167877]
[1734485199799,9.194e-05,106270.0,106260.0,2.05167877]
[1734485199994,0.00059194,106270.0,106260.0,2.05167877]
[1734485200994,9.194e-05,106270.0,106260.0,2.05167877]
[1734485202007,0.00059194,106270.0,106260.0,0.438347]
[1734485202394,0.00059194,106270.0,106260.0,1.938347]
[1734485202612,0.00059194,106270.0,106260.0,2.02067877]
[1734485202902,0.00059194,106270.0,106260.0,0.52067877]
[1734485203099,9.194e-05,106270.0,106260.0,0.52067877]
[1734485203991,0.00059194,106270.0,106260.0,0.52067877]
[1734485205097,9.194e-05,106270.0,106260.0,0.438347]
[1734485206000,0.00059194,106270.0,106260.0,0.438347]
[1734485206896,0.00059194,106270.0,106260.0,0.52067877]
[1734485207096,9.194e-05,106270.0,106260.0,0.52067877]
[1734485207406,9.194e-05,106270.0,106260.0,0.54596215]
[1734485208199,0.00059194,106270.0,106260.0,0.54596215]
[1734485208997,9.194e-05,106270.0,106260.0,0.54596215]
[1734485209800,9.194e-05,106270.0,106260.0,0.56626215]
[1734485210001,9.194e-05,106270.0,106260.0,2.06626215]
[1734485211399,9.194e-05,106270.0,106260.0,2.08486101]
[1734485211599,9.4e-07,106270.0,106260.0,2.08486101]
[1734485212707,9.4e-07,106270.0,106260.0,2.08492932]
[1734485212911,9.4e-07,106270.0,106260.0,2.38492932]
[1734485213101,0.0631,106290.0,106270.0,0.047043]
[1734485213306,0.0631,106290.0,106280.0,0.49016977]
[1734485215401,0.0631,106290.0,106280.0,1.99016977]
[1734485216208,0.0636,106290.0,106280.0,1.99016977]
[1734485216911,0.0964,106290.0,106280.0,1.99016977]
[1734485217210,0.0959,106290.0,106280.0,1.907838]
[1734485218099,0.0964,106290.0,106280.0,1.907838]
[1734485219002,0.0964,106290.0,106280.0,0.047038]
[1734485219200,0.4567,106290.0,106280.0,0.047038]
[1734485219405,0.0959,106290.0,106280.0,0.047038]
[1734485219906,0.0959,106290.0,106270.0,2.20173095]
[1734485220098,0.0964,106290.0,106280.0,0.047038]
[1734485220297,0.4572,106290.0,106280.0,0.047038]
[1734485221213,0.4567,106290.0,106280.0,0.047038]
[1734485221415,0.0959,106290.0,106280.0,0.047038]
[1734485222210,0.4572,106290.0,106280.0,0.047038]
[1734485222405,0.504234,106290.0,106280.0,0.047038]
[1734485222709,0.504234,106290.0,106270.0,1.5]
[1734485222911,0.504234,106290.0,106270.0,1.547042]
[1734485223120,0.504234,106290.0,106280.0,0.047038]
[1734485224205,0.503734,106290.0,106280.0,0.047038]
[1734485225409,0.58809629,106290.0,106280.0,0.047038]
[1734485226407,0.54106229,106290.0,106280.0,0.047038]
[1734485226611,0.4567,106290.0,106280.0,0.047038]
[1734485226809,0.4567,106290.0,106280.0,0.12936977]
[1734485227716,0.4567,106290.0,106280.0,1.62936977]
[1734485228106,0.4567,106290.0,106280.0,1.547038]
[1734485229007,0.4567,106290.0,106280.0,0.047038]
[1734485229008,0.503734,106290.0,106280.0,0.047038]
[1734485234322,0.142934,106290.0,106280.0,0.047038]
[1734485234706,0.503734,106290.0,106280.0,0.047038]
[1734485237222,0.4567,106290.0,106280.0,0.08756694]
[1734485239416,0.503734,106290.0,106280.0,0.047038]
[1734485245636,0.58809629,106290.0,106280.0,0.047038]
[1734485245831,0.503734,106290.0,106280.0,0.047038]
[1734485246430,0.62862523,106290.0,106280.0,0.047038]
[1734485246726,0.54426294,106290.0,106280.0,0.047038]
[1734485247130,0.503734,106290.0,106280.0,0.047038]
[1734485248321,0.58809629,106290.0,106280.0,0.047038]
[1734485251532,0.44516229,106290.0,106280.0,0.12809588]
[1734485251734,0.08436229,106290.0,106280.0,0.55069588]
[1734485251932,0.49219229,106300.0,106290.0,0.047034]
[1734485252133,0.49219229,106300.0,106290.0,0.08756294]
[1734485252634,0.13139229,106300.0,106290.0,0.08756294]
[1734485255323,0.08436229,106300.0,106290.0,0.08756294]
[1734485255526,0.53866229,106310.0,106300.0,0.047029]
[1734485255729,0.4543,106310.0,106300.0,0.12808688]
[1734485255936,0.4543,106310.0,106300.0,0.08755794]
[1734485256231,0.4538,106310.0,106300.0,0.04052894]
[1734485256436,0.4538,106310.0,106300.0,0.12808688]
[1734485256637,0.4538,106310.0,106300.0,0.08755794]
[1734485257141,0.4543,106310.0,106300.0,0.08755794]
[1734485258128,0.4538,106310.0,106300.0,0.08755794]
[1734485259138,0.4543,106310.0,106300.0,0.08755794]
[1734485259433,0.501325,106310.0,106300.0,0.08755794]
[1734485260128,0.500825,106310.0,106300.0,0.08755794]
[1734485260334,0.54135394,106310.0,106300.0,0.047029]
[1734485260736,0.500825,106310.0,106300.0,0.047029]
[1734485261040,0.500825,106310.0,106300.0,0.08755794]
[1734485262032,0.4538,106310.0,106300.0,0.08755794]
[1734485262429,0.093,106310.0,106300.0,0.08755794]
[1734485262633,0.093,106310.0,106300.0,0.12808688]
[1734485262829,0.093,106310.0,106300.0,0.08755794]
[1734485263430,0.4538,106310.0,106300.0,0.08755794]
[1734485265829,0.500825,106310.0,106300.0,0.08755794]
[1734485266441,0.500825,106310.0,106300.0,0.047029]
[1734485266641,0.500825,106310.0,106300.0,0.08755794]
[1734485267945,0.4538,106310.0,106300.0,0.12808688]
[1734485268338,0.093,106310.0,106300.0,0.12808688]
[1734485269445,0.0617,106310.0,106300.0,0.12808688]
[1734485269639,0.0617,106310.0,106300.0,0.08755794]
[1734485269942,0.0617,106310.0,106300.0,1.58755794]
[1734485270338,0.0617,106310.0,106300.0,1.62808688]
[1734485270540,0.0617,106310.0,106300.0,1.58755794]
[1734485271138,0.4225,106310.0,106300.0,1.58755794]
[1734485271345,0.4225,106310.0,106300.0,0.08755794]
[1734485273042,0.469525,106310.0,106300.0,0.08755794]
[1734485274344,0.0617,106310.0,106300.0,0.12808688]
[1734485279142,0.4225,106310.0,106300.0,0.08755794]
[1734485280453,0.469525,106310.0,106300.0,0.08755794]
[1734485283945,0.469525,106310.0,106300.0,0.047029]
[1734485284149,0.469525,106310.0,106300.0,0.08755794]
[1734485284451,0.55388729,106310.0,106300.0,0.08755794]
[1734485285053,0.469525,106310.0,106300.0,0.08755794]
[1734485285555,0.55388729,106310.0,106300.0,0.08755794]
[1734485286754,0.469525,106310.0,106300.0,0.08755794]
[1734485289855,0.469525,106310.0,106300.0,0.047029]
[1734485290062,0.047029,106300.0,106290.0,0.08648427]
[1734485290245,0.47975794,106300.0,106290.0,0.08648427]
[1734485290442,0.439229,106300.0,106290.0,0.12701321]
[1734485294660,0.439229,106300.0,106290.0,0.13701321]
[1734485295155,0.439229,106300.0,106290.0,0.09756194]
[1734485296355,0.439229,106300.0,106290.0,0.01]
[1734485296356,0.52028688,106300.0,106290.0,0.01]
[1734485296546,0.60464917,106300.0,106290.0,0.01]
[1734485296946,0.56412023,106300.0,106290.0,0.01]
[1734485297559,0.47975794,106300.0,106290.0,0.01]
[1734485297961,0.51276775,106300.0,106290.0,0.01]
[1734485308071,0.55329669,106300.0,106290.0,0.01]
[1734485308271,0.51276775,106300.0,106290.0,0.01]
[1734485308964,0.55329669,106300.0,106290.0,0.01]
[1734485309762,0.55329669,106300.0,106290.0,0.00758762]
[1734485309957,1.05014204,106300.0,106290.0,0.00758762]
[1734485310164,1.06909157,106300.0,106290.0,0.00758762]
[1734485310354,0.76909157,106300.0,106290.0,0.00758762]
[1734485313766,1.06909157,106300.0,106260.0,1.61797494]
[1734485314077,0.407842,106270.0,106260.0,1.61797494]
[1734485314266,0.047042,106270.0,106260.0,1.62797494]
[1734485314463,0.047042,106270.0,106260.0,1.587446]
[1734485314969,0.047042,106270.0,106260.0,1.62797494]
[1734485318281,0.047042,106270.0,106260.0,1.65657186]
[1734485319368,0.047042,106270.0,106260.0,1.65607186]
[1734485320386,0.047042,106270.0,106260.0,1.65657186]
[1734485321276,0.047042,106270.0,106260.0,1.65607186]
[1734485322267,0.047042,106270.0,106260.0,1.65657186]
[1734485323381,0.047042,106270.0,106260.0,1.65607186]
[1734485324280,0.047042,106270.0,106260.0,1.65657186]
[1734485325084,0.08757094,106270.0,106260.0,1.61604292]
[1734485325386,0.44837094,106270.0,106260.0,0.01]
[1734485325684,0.55299988,106270.0,106260.0,0.01]
[1734485326076,0.85299988,106270.0,106260.0,0.01]
[1734485326275,0.81247094,106270.0,106260.0,0.0105]
[1734485326581,0.51247094,106270.0,106260.0,0.0105]
[1734485327386,0.51247094,106270.0,106260.0,0.01]
[1734485332987,0.471942,106270.0,106260.0,0.09757594]
[1734485333281,0.438642,106270.0,106260.0,0.09757594]
[1734485333484,0.438642,106270.0,106260.0,1.59757594]
[1734485334591,0.438642,106270.0,106260.0,0.09757594]
[1734485335890,0.438642,106270.0,106260.0,0.057047]
[1734485336787,0.407842,106270.0,106260.0,0.09757594]
[1734485337985,0.407839,106280.0,106270.0,0.047042]
[1734485338189,0.407839,106280.0,106270.0,0.11867094]
[1734485338388,0.047039,106280.0,106270.0,0.11867094]
[1734485339593,0.047039,106280.0,106270.0,0.078142]